bitfinex/quotes_SOLUSD_20240729
["timestamp","ask_amount","ask_price","bid_price","bid_amount"]
[1722275341407,0.7562119,187.08,187.04,21.23858584]
[1722275341598,0.7562119,187.08,187.05,45.0]
[1722275342199,0.7562119,187.08,187.06,1.06888367]
[1722275342423,0.7562119,187.08,187.05,45.0]
[1722275342610,0.7562119,187.08,187.02,1.06887827]
[1722275342816,0.7562119,187.08,187.02,66.06892763]
[1722275343013,0.7562119,187.08,187.02,46.06892763]
[1722275343231,0.7562119,187.08,187.02,1.06892763]
[1722275344010,0.7562119,187.08,187.01,46.06897512]
[1722275344330,0.7562119,187.08,187.02,1.06897521]
[1722275344717,24.76,187.06,186.97,1.06904966]
[1722275345622,0.7562119,187.08,186.97,1.06904966]
[1722275347322,0.7562119,187.08,186.94,20.0]
[1722275347502,24.76,187.06,186.92,21.7877]
[1722275347932,24.76,187.06,186.91,5.59268898]
[1722275348433,30.1059,187.06,186.92,1.06935986]
[1722275349926,24.76,187.06,186.92,46.06935986]
[1722275351007,30.1058,187.06,186.92,46.06935986]
[1722275351734,24.76,187.06,186.92,46.06935986]
[1722275352316,5.3462,187.05,186.92,46.06935986]
[1722275352515,24.76,187.06,186.92,46.06935986]
[1722275353025,30.1059,187.06,186.92,46.06935986]
[1722275354420,28.3107,187.07,186.92,46.06935986]
[1722275354732,22.9652,187.07,186.93,64.93]
[1722275354938,22.9652,187.07,186.94,46.06908564]
[1722275355141,22.9652,187.07,186.95,20.0]
[1722275355432,22.9652,187.07,186.96,46.23922477]
[1722275355607,22.9652,187.07,186.96,45.0]
[1722275355817,22.9652,187.07,186.96,46.06931583]
[1722275356205,22.9652,187.07,186.97,0.17]
[1722275356438,0.7562119,187.08,186.98,1.06908147]
[1722275356731,0.7562119,187.08,186.99,1.2389309]
[1722275357036,0.7562119,187.08,187.0,0.17]
[1722275357209,0.7562119,187.08,187.01,1.0689505]
[1722275357412,0.7562119,187.08,187.0,46.06902869]
[1722275357837,0.7562119,187.08,187.01,0.17]
[1722275358047,0.7562119,187.08,187.02,1.06894567]
[1722275358223,0.7562119,187.08,187.0,45.0]
[1722275358617,0.7562119,187.08,186.99,21.06893658]
[1722275358828,0.7562119,187.08,186.99,1.06902424]
[1722275359843,0.7562119,187.08,186.98,20.0]
[1722275360019,0.7562119,187.08,186.99,1.06913988]
[1722275360215,0.7562119,187.08,186.94,21.06908688]
[1722275361554,25.5162119,187.08,186.94,1.06908688]
[1722275362044,0.7562119,187.08,186.94,1.06908688]
[1722275362728,24.76,187.04,186.91,6.6643089]
[1722275362942,1.07381032,187.05,186.91,5.59509248]
[1722275363139,20.0,187.05,186.91,5.59509248]
[1722275363319,24.76,187.04,186.91,6.66456034]
[1722275364523,24.76,187.04,186.92,20.0]
[1722275364826,24.76,187.04,186.93,45.0]
[1722275365646,24.76,187.04,186.92,20.0]
[1722275365844,24.76,187.04,186.91,6.66464794]
[1722275367242,24.76,187.04,186.92,65.17]
[1722275367439,24.76,187.04,186.92,66.06636043]
[1722275367733,24.76,187.04,186.93,1.0694915]
[1722275368146,24.76,187.04,186.92,65.0]
[1722275368729,24.76,187.04,186.93,1.06947387]
[1722275368930,24.76,187.04,186.93,1.06932702]
[1722275369853,15.3995,187.06,186.94,0.17]
[1722275370045,15.3995,187.06,186.95,1.06926278]
[1722275370232,15.3995,187.06,186.96,1.06926278]
[1722275370430,15.3995,187.06,186.94,1.23926296]
[1722275370731,30.1066,187.04,186.91,5.59509248]
[1722275370934,24.76,187.04,186.92,1.06953991]
[1722275371241,24.76,187.04,186.93,1.06953882]
[1722275372449,24.76,187.04,186.92,46.06948855]
[1722275372643,24.76,187.04,186.92,45.0]
[1722275372846,30.1064,187.04,186.92,45.0]
[1722275373355,24.76,187.04,186.92,45.0]
[1722275373552,5.3468,187.03,186.92,45.0]
[1722275373731,24.76,187.04,186.92,45.0]
[1722275374334,24.76,187.04,186.93,1.06954799]
[1722275374754,24.76,187.04,186.92,45.0]
[1722275375428,1.07381032,187.03,186.92,45.0]
[1722275376130,24.76,187.04,186.92,45.0]
[1722275376527,1.07381032,187.03,186.92,45.0]
[1722275376753,25.83381032,187.04,186.92,45.0]
[1722275376933,24.76,187.04,186.88,6.66630012]
[1722275377132,24.76,187.04,186.89,20.0]
[1722275377354,24.76,187.04,186.9,1.06961409]
[1722275377665,24.76,187.04,186.9,1.06960666]
[1722275377953,30.1066,187.04,186.89,20.0]
[1722275378134,5.3467,187.03,186.9,1.06969525]
[1722275378339,24.76,187.04,186.9,1.06969525]
[1722275378537,1.07381032,187.03,186.89,20.0]
[1722275378851,5.3471,187.02,186.89,20.0]
[1722275379227,30.1066,187.04,186.9,46.06968219]
[1722275379432,6.42051032,187.03,186.9,45.0]
[1722275379652,30.1064,187.04,186.9,45.0]
[1722275380764,25.83381032,187.04,186.9,45.0]
[1722275381058,22.7338,187.03,186.9,45.0]
[1722275381267,22.7338,187.03,186.91,1.06974895]
[1722275381434,22.5638,187.03,186.91,1.06974895]
[1722275381756,22.5638,187.03,186.91,1.06968386]
[1722275381959,22.5638,187.03,186.91,21.06968386]
[1722275382252,22.5638,187.03,186.92,46.0695523]
[1722275382449,22.5638,187.03,186.92,45.0]
[1722275384343,0.7562119,187.08,186.95,24.76]
[1722275384657,0.7562119,187.08,186.96,46.23901294]
[1722275384842,0.7562119,187.08,186.97,20.0]
[1722275385040,0.7562119,187.08,186.98,46.06910698]
[1722275385249,0.7562119,187.08,186.99,1.06910698]
[1722275385556,0.7562119,187.08,186.98,45.0]
[1722275385762,0.7562119,187.08,186.98,46.06918966]
[1722275386058,0.7562119,187.08,186.98,45.0]
[1722275386740,0.7562119,187.08,186.99,1.06917264]
[1722275387934,0.7562119,187.08,186.99,21.06917264]
[1722275388152,0.7562119,187.08,187.0,45.0]
[1722275390863,0.7562119,187.08,186.96,1.06922162]
[1722275391243,0.7562119,187.08,186.94,1.06929645]
[1722275392045,0.7562119,187.08,186.95,0.17]
[1722275392261,0.7562119,187.08,186.96,1.06926558]
[1722275392451,0.7562119,187.08,186.94,66.06926558]
[1722275392850,0.7562119,187.08,186.95,0.17]
[1722275393042,0.7562119,187.08,186.96,1.06920279]
[1722275393862,0.7562119,187.08,186.97,0.17]
[1722275394067,0.7562119,187.08,186.98,1.06913841]
[1722275394274,0.7562119,187.08,186.97,1.06913751]
[1722275394564,0.7562119,187.08,186.98,1.06920686]
[1722275394753,0.7562119,187.08,186.95,1.23911145]
[1722275394942,0.7562119,187.08,186.96,1.06911288]
[1722275395344,0.7562119,187.08,186.97,0.17]
[1722275395562,0.7562119,187.08,186.98,1.06911263]
[1722275396445,0.7562119,187.08,186.99,1.06911316]
[1722275396847,0.7562119,187.08,186.98,1.06906796]
[1722275397071,0.7562119,187.08,186.99,1.06910838]
[1722275398274,0.7562119,187.08,186.99,1.06908613]
[1722275401254,0.7562119,187.08,186.97,1.23910342]
[1722275401455,0.7562119,187.08,186.97,46.23910342]
[1722275401668,0.7562119,187.08,186.98,20.0]
[1722275401973,0.7562119,187.08,186.99,45.0]
[1722275403271,0.7562119,187.08,186.93,1.06919513]
[1722275403272,46.2888,187.07,186.93,1.06919513]
[1722275403448,51.6344,187.07,186.93,1.06919513]
[1722275403853,21.5288,187.07,186.93,1.06919513]
[1722275404184,21.5288,187.07,186.95,24.76]
[1722275404357,21.5288,187.07,186.96,1.06911854]
[1722275404556,21.5288,187.07,186.96,21.06911854]
[1722275405279,21.5288,187.07,186.97,45.17]
[1722275405574,21.5288,187.07,186.98,20.0]
[1722275405754,21.5288,187.07,186.99,45.0]
[1722275406958,21.5288,187.07,187.0,1.06920522]
[1722275407161,21.5288,187.07,186.95,21.06933806]
[1722275407560,21.5288,187.07,186.96,1.06933539]
[1722275408356,21.5288,187.07,186.97,0.17]
[1722275409072,21.5288,187.07,186.97,20.17]
[1722275409270,21.5288,187.07,187.01,12.37]
[1722275409576,33.8988,187.07,187.02,45.0]
[1722275409778,12.37,187.06,186.99,12.37]
[1722275409955,33.8988,187.07,187.0,57.37]
[1722275410154,33.8988,187.07,187.0,12.37]
[1722275410379,33.8988,187.07,187.01,45.0]
[1722275410559,12.37,187.05,186.98,12.37]
[1722275410761,12.37,187.05,186.99,65.0]
[1722275411151,12.37,187.05,186.99,77.37]
[1722275411356,21.5288,187.07,186.99,65.0]
[1722275411553,12.37,187.06,186.99,77.37]
[1722275411871,12.37,187.05,186.99,65.0]
[1722275412072,12.37,187.06,186.99,77.37]
[1722275412778,12.37,187.06,186.99,57.37]
[1722275412967,12.37,187.03,186.96,12.37]
[1722275413358,21.5288,187.07,186.94,6.65804231]
[1722275413556,21.5288,187.07,187.0,12.37]
[1722275413967,33.8988,187.07,187.0,12.37]
[1722275414277,12.37,187.06,186.98,12.37]
[1722275414578,12.37,187.02,186.95,12.37]
[1722275414970,12.37,187.01,186.94,5.58872851]
[1722275415175,12.37,187.0,186.93,12.37]
[1722275415371,16.5716,186.99,186.91,5.59056225]
[1722275415583,12.37,186.98,186.92,12.37]
[1722275417173,16.5716,186.99,186.88,6.65631244]
[1722275417355,16.5716,186.99,186.88,5.58659935]
[1722275417671,22.9841,186.99,186.88,5.58659935]
[1722275417877,24.05791032,186.99,186.88,5.58659935]
[1722275418062,21.8875,187.03,186.92,24.77]
[1722275418380,21.8875,187.03,186.93,1.06934081]
[1722275418955,21.8875,187.03,186.93,21.06934081]
[1722275419159,21.8875,187.03,186.94,45.17]
[1722275419378,21.8875,187.03,186.95,1.06934644]
[1722275420280,21.8875,187.03,186.96,0.17]
[1722275420473,21.8875,187.03,186.94,45.17]
[1722275420885,21.8875,187.03,186.95,1.06934725]
[1722275421092,15.475,187.03,186.96,0.17]
[1722275421292,25.371,187.29,187.0,24.77]
[1722275421508,22.3399,187.38,187.18,20.0]
[1722275421509,0.7562119,187.27,187.18,20.0]
[1722275421672,0.7562119,187.27,187.2,44.77]
[1722275421982,0.7562119,187.27,187.21,65.0]
[1722275422191,0.7562119,187.27,187.21,46.06792748]
[1722275422485,0.7562119,187.27,187.21,30.0]
[1722275422687,0.7562119,187.27,187.2,45.0]
[1722275422987,0.7562119,187.27,187.21,1.06809586]
[1722275423489,0.7562119,187.27,187.2,45.0]
[1722275423679,0.7562119,187.27,187.21,1.06794174]
[1722275424395,0.7562119,187.27,187.2,45.0]
[1722275425568,0.7562119,187.27,187.12,1.06809394]
[1722275425889,0.7562119,187.27,187.13,30.17]
[1722275426090,0.7562119,187.27,187.14,66.0681565]
[1722275426290,0.7562119,187.27,187.15,1.23812816]
[1722275426599,10.6750977,187.29,187.15,1.06806797]
[1722275426797,5.3396,187.28,187.15,1.06828932]
[1722275427593,5.3357977,187.29,187.16,1.06822968]
[1722275427799,20.17,187.28,187.09,1.06834443]
[1722275428092,5.3401,187.27,187.09,1.06834443]
[1722275428385,20.0,187.26,187.09,1.06834443]
[1722275428785,5.3399,187.27,187.09,1.06834443]
[1722275428975,25.3402,187.26,187.09,1.06834443]
[1722275429180,5.3402,187.26,187.1,0.17]
[1722275429493,6.6324,187.25,187.1,0.17]
[1722275429695,6.6324,187.25,187.11,1.06839121]
[1722275430586,11.9728,187.25,187.11,1.06839121]
[1722275430773,11.9728,187.25,187.08,1.06839481]
[1722275431086,11.9728,187.25,187.08,46.06839481]
[1722275431291,22.6102,187.25,187.09,20.0]
[1722275431598,22.6102,187.25,187.1,1.06840404]
[1722275431789,22.6102,187.25,187.11,1.06838817]
[1722275432794,22.6102,187.25,187.08,1.06839059]
[1722275432987,22.6102,187.25,187.09,0.17]
[1722275433179,27.9506,187.25,187.1,1.06839772]
[1722275433380,27.9506,187.25,187.11,0.17]
[1722275433580,5.3407,187.24,187.1,46.06839068]
[1722275433776,5.3411,187.23,187.11,20.0]
[1722275433976,5.3407,187.24,187.11,21.06848825]
[1722275434291,22.6102,187.25,187.11,1.06848825]
[1722275434586,27.9506,187.25,187.08,1.06842019]
[1722275434996,5.3407,187.24,187.08,1.06842019]
[1722275435167,22.6102,187.25,187.09,0.17]
[1722275435373,22.6102,187.25,187.08,1.06842019]
[1722275435570,27.9507,187.25,187.09,0.17]
[1722275435771,20.0,187.24,187.1,1.06845079]
[1722275436090,20.0,187.24,187.11,1.06845079]
[1722275436286,22.6102,187.25,187.11,1.06845079]
[1722275436585,22.6102,187.25,187.09,1.23842785]
[1722275437595,27.9507,187.25,187.09,0.17]
[1722275437795,22.6102,187.25,187.09,1.23846628]
[1722275438000,5.3411,187.23,187.09,1.06846628]
[1722275438168,5.3407,187.24,187.09,1.06846628]
[1722275438677,27.9506,187.25,187.06,1.06851695]
[1722275438981,25.3407,187.24,187.07,0.17]
[1722275439183,25.3407,187.24,187.08,1.06851789]
[1722275439397,5.341,187.23,187.08,1.06851789]
[1722275439698,5.341,187.23,187.08,46.06851789]
[1722275439872,5.341,187.23,187.09,20.0]
[1722275440189,5.341,187.23,187.1,45.0]
[1722275440395,5.3416,187.21,187.04,6.2305]
[1722275440580,27.77,187.22,187.04,6.2305]
[1722275440581,27.77,187.22,187.05,1.06864881]
[1722275440777,20.0,187.21,187.05,21.06864881]
[1722275441091,27.77,187.22,187.05,21.06864881]
[1722275441797,27.77,187.22,187.06,65.0]
[1722275441984,27.77,187.22,187.07,1.06857112]
[1722275442201,27.77,187.22,187.08,1.23857168]
[1722275442387,27.77,187.22,187.07,1.06857218]
[1722275442586,5.3416,187.21,187.06,65.17]
[1722275442989,33.1113,187.22,187.06,65.17]
[1722275444396,33.1114,187.22,187.06,65.0]
[1722275444795,5.3416,187.21,187.06,65.0]
[1722275445176,24.73,187.18,187.06,45.0]
[1722275445497,24.73,187.18,187.05,45.0]
[1722275446991,24.73,187.15,187.05,45.0]
[1722275449203,24.73,187.11,186.99,1.06884584]
[1722275450511,24.73,187.11,186.98,6.65561556]
[1722275450680,24.73,187.11,186.98,6.65570189]
[1722275450994,24.73,187.11,186.98,5.58651636]
[1722275452103,24.73,187.11,186.99,20.0]
[1722275452693,24.73,187.11,187.0,45.0]
[1722275452884,24.73,187.11,186.99,20.0]
[1722275453493,24.73,187.11,186.98,5.58651636]
[1722275453886,30.0744,187.11,186.98,5.58651636]
[1722275454087,24.73,187.08,186.98,5.58651636]
[1722275454979,24.73,187.08,186.92,23.2041]
[1722275455198,24.73,187.08,186.93,1.06945541]
[1722275455404,24.73,187.08,186.95,5.585812]
[1722275455610,24.73,187.08,186.93,1.06945541]
[1722275455794,24.73,187.05,186.94,5.58588077]
[1722275455978,24.73,187.05,186.92,1.0694573]
[1722275456384,24.73,187.05,186.91,5.58747361]
[1722275456992,24.73,187.05,186.92,1.06953951]
[1722275457193,24.73,187.05,186.91,6.657012]
[1722275457602,24.73,187.05,186.92,1.06956315]
[1722275458013,24.73,187.05,186.92,21.06956315]
[1722275458187,24.73,187.05,186.93,45.0]
[1722275458389,30.0762,187.05,186.93,45.0]
[1722275458596,24.73,187.05,186.93,1.06965582]
[1722275458795,24.73,187.05,186.89,1.0696351]
[1722275458796,30.0761,187.05,186.89,1.0696351]
[1722275459002,30.0761,187.05,186.9,1.06963736]
[1722275459410,30.0761,187.05,186.89,6.65991027]
[1722275459923,5.3465,187.04,186.89,5.59027373]
[1722275460127,24.73,187.05,186.9,65.0]
[1722275460422,24.73,187.05,186.9,66.06965476]
[1722275460813,24.73,187.05,186.9,20.0]
[1722275461116,20.17,187.04,186.9,20.0]
[1722275461314,22.3368,187.08,186.91,24.73]
[1722275461519,20.0,187.07,186.92,41.23937418]
[1722275461818,20.0,187.07,186.93,1.0693749]
[1722275461995,22.3368,187.08,186.97,20.0]
[1722275462197,22.3368,187.08,186.98,1.23911674]
[1722275462413,22.3368,187.08,186.98,45.0]
[1722275462915,22.3368,187.08,186.97,45.0]
[1722275463117,22.3368,187.08,186.92,20.0]
[1722275463429,5.3462,187.05,186.92,20.0]
[1722275463593,5.3462,187.05,186.9,21.06951479]
[1722275463788,24.73,187.06,186.9,21.06951479]
[1722275463995,24.73,187.03,186.9,20.0]
[1722275464207,24.73,187.03,186.89,5.59027373]
[1722275464398,24.73,187.03,186.89,6.65993037]
[1722275464596,24.73,187.06,186.9,1.06965594]
[1722275464911,24.73,187.06,186.9,21.06965594]
[1722275465116,22.3368,187.08,186.9,21.06965594]
[1722275465415,20.0,187.07,186.9,29.02597313]
[1722275465721,20.0,187.07,186.91,20.0]
[1722275466012,20.0,187.07,186.92,46.23948014]
[1722275466198,20.0,187.07,186.93,21.06948049]
[1722275466403,20.0,187.07,186.94,45.0]
[1722275466597,22.3368,187.08,186.95,21.23933041]
[1722275466800,22.3368,187.08,186.96,65.0]
[1722275466996,22.3368,187.08,186.97,21.23914133]
[1722275467205,22.3368,187.08,186.98,45.0]
[1722275467503,22.3368,187.08,186.98,46.06913764]
[1722275468835,22.3368,187.08,186.99,1.0691387]
[1722275469305,22.3368,187.08,186.98,45.0]
[1722275469705,22.3368,187.08,186.99,20.0]
[1722275470011,22.3368,187.08,187.0,45.0]
[1722275470713,22.3368,187.08,186.94,1.06923264]
[1722275470924,47.0668,187.08,186.93,1.06933693]
[1722275471229,22.3368,187.08,186.96,20.0]
[1722275471395,22.3368,187.08,186.97,1.06915024]
[1722275472296,22.3368,187.08,186.98,0.17]
[1722275472621,22.3368,187.08,186.97,45.0]
[1722275476300,5.3455,187.07,186.97,45.0]
[1722275476519,22.3368,187.08,186.93,1.06936423]
[1722275476520,27.6821,187.08,186.93,1.06936423]
[1722275476700,22.3368,187.08,186.93,1.06936423]
[1722275476901,22.3368,187.08,186.93,25.79936423]
[1722275477199,27.6822,187.08,186.93,25.79936423]
[1722275477411,22.3368,187.08,186.93,25.79936423]
[1722275477926,22.3368,187.08,186.94,65.17]
[1722275478119,22.3368,187.08,186.95,1.06936966]
[1722275478316,22.3368,187.08,186.96,20.0]
[1722275478519,22.3368,187.08,186.97,66.23914466]
[1722275480509,22.3368,187.08,186.97,65.17]
[1722275480832,22.3368,187.08,186.97,46.06927413]
[1722275482021,22.3368,187.08,186.97,45.0]
[1722275482329,5.3459,187.06,186.93,1.06940697]
[1722275482507,5.3459,187.06,186.92,1.06949152]
[1722275482708,5.3455,187.07,186.92,1.06949152]
[1722275482908,20.0,187.06,186.92,1.06949152]
[1722275484013,20.0,187.06,186.92,21.06949152]
[1722275484523,20.0,187.06,186.92,20.0]
[1722275484524,24.73,187.05,186.92,20.0]
[1722275484704,24.73,187.05,186.91,20.17]
[1722275485240,24.73,187.05,186.91,20.0]
[1722275485530,30.0761,187.05,186.91,21.06958447]
[1722275485904,30.0762,187.05,186.91,20.0]
[1722275486104,22.546,187.04,186.91,20.0]
[1722275486517,27.8924,187.04,186.92,45.0]
[1722275486830,5.3467,187.03,186.92,45.0]
[1722275487128,27.8924,187.04,186.92,45.0]
[1722275487317,20.0,187.03,186.92,45.0]
[1722275488326,27.8926,187.04,186.93,1.06969827]
[1722275488531,22.546,187.04,186.89,9.04058991]
[1722275488744,20.0,187.03,186.88,9.04061403]
[1722275488924,20.0,187.03,186.9,1.06972292]
[1722275489421,20.0,187.03,186.89,9.04061511]
[1722275489623,20.0,187.03,186.91,1.069724]
[1722275489920,20.0,187.03,186.9,45.0]
[1722275490124,20.0,187.03,186.91,0.17]
[1722275490423,20.0,187.03,186.9,52.97089111]
[1722275491332,20.0,187.03,186.91,7.97089111]
[1722275491518,20.0,187.03,186.92,45.0]
[1722275492125,22.546,187.04,186.92,45.0]
[1722275492506,22.546,187.04,186.92,52.96814149]
[1722275492915,22.546,187.04,186.92,45.0]
[1722275494839,20.0,187.03,186.92,45.0]
[1722275495818,24.73,187.02,186.9,7.96778678]
[1722275496017,30.0772,187.02,186.9,7.96778678]
[1722275496435,20.0,187.01,186.9,7.96778678]
[1722275497930,20.0,187.01,186.91,45.0]
[1722275498306,25.3473,187.01,186.9,7.96778678]
[1722275498532,22.716,187.04,186.91,1.06984353]
[1722275498533,22.546,187.04,186.91,1.06984353]
[1722275498737,22.546,187.04,186.91,9.03763031]
[1722275498916,22.546,187.04,186.92,45.0]
[1722275499320,22.546,187.04,186.91,45.0]
[1722275499535,27.8925,187.04,186.91,45.0]
[1722275499713,22.546,187.04,186.91,45.0]
[1722275501817,22.546,187.04,186.92,0.17]
[1722275502026,22.546,187.04,186.91,45.0]
[1722275503226,27.8924,187.04,186.91,45.0]
[1722275503428,5.3469,187.03,186.91,45.0]
[1722275503619,22.546,187.04,186.91,45.0]
[1722275504836,22.546,187.04,186.92,1.06962053]
[1722275505034,22.546,187.04,186.92,0.17]
[1722275505237,22.546,187.04,186.94,24.73]
[1722275505441,22.546,187.04,186.95,46.23934569]
[1722275505635,22.546,187.04,186.96,21.0693462]
[1722275505938,22.546,187.04,186.97,45.0]
[1722275506128,16.2357,187.04,186.98,0.17]
[1722275506326,6.3756,187.08,186.98,1.23924886]
[1722275506641,6.3756,187.08,186.98,41.23924886]
[1722275506848,6.3756,187.08,186.99,45.0]
[1722275507035,6.3756,187.08,187.0,21.23905819]
[1722275507227,6.3756,187.08,187.01,45.0]
[1722275513856,22.9543,187.13,187.02,1.06914621]
[1722275514024,22.9543,187.13,187.02,1.23914621]
[1722275514228,22.9543,187.13,187.02,21.23914621]
[1722275514429,22.9543,187.13,187.03,45.0]
[1722275514651,22.9543,187.13,187.04,1.06894152]
[1722275514845,22.9543,187.13,187.05,1.06894152]
[1722275515961,22.9543,187.13,187.03,45.0]
[1722275517633,22.9543,187.13,186.98,1.06906962]
[1722275517957,24.73,187.12,186.98,1.0691935]
[1722275518257,24.73,187.12,186.96,1.06923167]
[1722275518623,24.73,187.12,186.96,21.06923167]
[1722275519027,24.73,187.12,186.97,20.0]
[1722275519235,24.73,187.12,186.98,45.0]
[1722275519553,24.73,187.12,186.99,20.0]
[1722275519753,24.73,187.12,187.0,45.0]
[1722275521047,22.9543,187.13,187.01,1.23911596]
[1722275521255,22.9543,187.13,187.01,21.23911596]
[1722275521450,22.9543,187.13,187.02,45.0]
[1722275522859,22.9543,187.13,187.02,46.06898461]
[1722275523650,22.9543,187.13,187.02,45.0]
[1722275524856,22.9543,187.13,187.02,46.06899859]
[1722275525242,22.9543,187.13,187.02,45.0]
[1722275525744,5.3444,187.11,186.95,23.23621801]
[1722275525941,5.3444,187.11,186.96,1.06921226]
[1722275526136,44.73,187.12,186.96,1.06921226]
[1722275526740,44.73,187.12,186.97,20.0]
[1722275526954,44.73,187.12,186.98,1.06912017]
[1722275527156,22.9543,187.13,186.99,20.17]
[1722275527458,22.9543,187.13,187.0,66.06894629]
[1722275527657,22.9543,187.13,187.01,0.17]
[1722275528064,22.9543,187.13,187.0,65.0]
[1722275528235,22.9543,187.13,187.01,1.23904447]
[1722275528554,22.9543,187.13,187.01,0.17]
[1722275528864,22.9543,187.13,187.02,1.06899965]
[1722275529050,22.9543,187.13,187.03,0.17]
[1722275529763,22.9543,187.13,187.02,65.0]
[1722275530057,22.9543,187.13,187.03,0.17]
[1722275530443,22.9543,187.13,187.04,1.06886975]
[1722275531334,16.0842,187.17,187.05,1.06887054]
[1722275531664,16.0842,187.17,187.05,1.23887054]
[1722275532165,16.0842,187.17,187.05,0.17]
[1722275532337,16.0842,187.17,187.05,1.23881954]
[1722275535164,24.73,187.16,187.04,20.0]
[1722275535662,16.0842,187.17,187.05,1.06895697]
[1722275536065,16.0842,187.17,187.02,35.7947]
[1722275536066,20.0,187.16,187.02,15.7947]
[1722275536249,44.73,187.16,187.02,15.7947]
[1722275536448,50.073,187.16,187.02,15.7947]
[1722275536653,50.073,187.16,187.03,1.0690223]
[1722275536849,44.73,187.16,187.03,1.0690223]
[1722275537159,24.73,187.16,187.03,1.0690223]
[1722275537541,24.73,187.16,187.03,21.0690223]
[1722275537747,24.73,187.16,187.04,45.17]
[1722275537943,5.3419,187.2,187.05,21.06885586]
[1722275538145,15.0553,187.22,187.05,21.06885586]
[1722275538146,5.3416,187.21,187.06,45.17]
[1722275538349,20.0,187.2,187.07,1.06873505]
[1722275538663,20.0,187.2,187.08,1.0687357]
[1722275539070,44.73,187.2,187.06,45.0]
[1722275539446,24.73,187.17,187.05,20.0]
[1722275539752,24.73,187.17,187.03,20.0]
[1722275540152,30.0727,187.17,187.03,20.0]
[1722275540672,24.73,187.11,187.0,6.0318]
[1722275540871,24.73,187.11,186.97,36.49775415]
[1722275540872,30.0744,187.11,186.97,15.4288]
[1722275541085,24.73,187.11,186.97,15.4288]
[1722275542251,24.73,187.11,186.98,1.06924347]
[1722275542461,24.73,187.11,186.98,46.06924347]
[1722275542665,24.73,187.11,186.99,1.06919001]
[1722275543674,31.1471,187.14,186.99,1.06919001]
[1722275543850,31.1471,187.14,187.0,0.17]
[1722275543851,20.0,187.13,187.0,0.17]
[1722275544051,20.0,187.13,187.01,1.06907872]
[1722275544271,31.1471,187.14,187.02,1.06903027]
[1722275544469,6.4171,187.14,187.02,1.06903027]
[1722275544770,6.4171,187.14,187.01,1.06902913]
[1722275544960,6.4171,187.14,187.02,1.2389103]
[1722275545372,16.3915,187.16,187.03,20.0]
[1722275545574,16.3915,187.16,187.05,6.0865]
[1722275545762,16.3915,187.16,187.06,0.17]
[1722275545956,16.3915,187.16,187.06,45.17]
[1722275548459,16.3915,187.16,187.06,45.0]
[1722275550971,24.73,187.15,187.01,27.96501571]
[1722275551147,24.73,187.15,187.01,20.0]
[1722275552180,24.73,187.15,187.01,27.97088101]
[1722275552681,24.73,187.15,187.02,45.0]
[1722275552869,24.73,187.15,187.03,20.0]
[1722275553068,24.73,187.15,187.04,45.0]
[1722275553576,24.73,187.15,187.0,14.74498101]
[1722275553577,20.0,187.14,187.0,14.74498101]
[1722275553771,20.0,187.14,187.01,45.0]
[1722275554174,25.3436,187.14,187.0,14.57498101]
[1722275554379,25.3436,187.14,187.0,6.6041]
[1722275554557,24.73,187.12,186.99,7.97406074]
[1722275554761,6.5998,187.11,186.99,7.97406074]